Workbook

Sheet SEMESTRAS
B1: MANO PASKAITŲ TVARKARAŠTIS
B2: RUDENS SEMESTRAS
C3: PRADŽIOS LAIKAS | D3: LAIKO INTERVALAS | F3: METAI
C4: 09:00:00 | D4: 60 | E4: (Protokoluose)
B5: LAIKAS | C5: PR | D5: AN | E5: TR | F5: KT | G5: PN | H5: ŠT | I5: SK
B6: =PradžiosLaikas+TIME(0,(ROW(A1)-1)*LaikoIntervalas,0) -> 09:00:00 | C6: Pusryčiai | D6: Pusryčiai | E6: Pusryčiai | F6: Pusryčiai | G6: Pusryčiai
B7: 10:00:00 | C7: Verslas: korpusas B, 256 aud.
B8: 11:00:00 | F8: Fizika: Laboratorija Pastatas J, 309 aud.
B9: 12:00:00
B10: 13:00:00
B11: 14:00:00
B12: 15:00:00
B13: 16:00:00
B14: 17:00:00
B15: 18:00:00
B16: 19:00:00
B17: 20:00:00
B18: 21:00:00
B19: 22:00:00
B20: 23:00:00
B21: 1
B22: 1.041666667
B23: 1.083333333
B24: 1.125
B25: 1.166666667
B26: 1.208333333
B27: 1.25
B28: 1.291666667
B29: 1.333333333

Sheet KREDITAI
B1: UNIVERSITETAS
B2: KREDITŲ PLANAVIMO PRIEMONĖ
B3: Laipsnis | C3: =Metai -> METAI
B4: BENDROJI PAŽANGA | D4: BENDROJI PAŽANGA
B5: =AVERAGE(Kursai[ĮVERTINIMAS]) -> 3.5 | C5: =IFERROR(TEXT(AVERAGEIF(Kursai[ĮVYKDYTA],"Taip",Kursai[ĮVERTINIMAS]),"0,00"),"0,00")&" Dabartinis vidurkis" -> 3,50 Dabartinis vidurkis | D5: =COUNTIF(Kursai[ĮVYKDYTA],"Taip")/COUNTA(Kursai[KURSO PAVADINIMAS]) -> 0.6666666667 | E5: =TEXT(COUNTIF(Kursai[ĮVYKDYTA],"Taip")/COUNTA(Kursai[KURSO PAVADINIMAS]),"0"" ""%")&" įvykdyta" -> 67 % įvykdyta
B6: Pastaba Toliau pateikta kreditų suvestinė automatiškai užpildoma jūsų universiteto kursų lentelės įrašais
B7: REIKALAVIMAS | C7: IŠ VISO KREDITŲ | D7: GAUTA | E7: REIKIA
B8: Akademinė specializacija | C8: =IF(SUMIF(Kursai[REIKALAVIMAS],KREDITAI!$B8,Kursai[KREDITAI])=0,"0",SUMIF(Kursai[REIKALAVIMAS],KREDITAI!$B8,Kursai[KREDITAI])) -> 4 | D8: =SUMIFS(Kursai[KREDITAI],Kursai[REIKALAVIMAS],KREDITAI!$B8,Kursai[ĮVYKDYTA],"Taip") -> 4 | E8: =SUMIF(Kursai[REIKALAVIMAS],KREDITAI!$B8,Kursai[KREDITAI])-SUMIFS(Kursai[KREDITAI],Kursai[REIKALAVIMAS],KREDITAI!$B8,Kursai[ĮVYKDYTA],"Taip") -> 0
B9: Akademinė neprofilinė disciplina | C9: =IF(SUMIF(Kursai[REIKALAVIMAS],KREDITAI!$B9,Kursai[KREDITAI])=0,"0",SUMIF(Kursai[REIKALAVIMAS],KREDITAI!$B9,Kursai[KREDITAI])) -> 3 | D9: =SUMIFS(Kursai[KREDITAI],Kursai[REIKALAVIMAS],KREDITAI!$B9,Kursai[ĮVYKDYTA],"Taip") -> 0 | E9: =SUMIF(Kursai[REIKALAVIMAS],KREDITAI!$B9,Kursai[KREDITAI])-SUMIFS(Kursai[KREDITAI],Kursai[REIKALAVIMAS],KREDITAI!$B9,Kursai[ĮVYKDYTA],"Taip") -> 3
B10: Pasirenkamasis kursas | C10: =IF(SUMIF(Kursai[REIKALAVIMAS],KREDITAI!$B10,Kursai[KREDITAI])=0,"0",SUMIF(Kursai[REIKALAVIMAS],KREDITAI!$B10,Kursai[KREDITAI])) -> 2 | D10: =SUMIFS(Kursai[KREDITAI],Kursai[REIKALAVIMAS],KREDITAI!$B10,Kursai[ĮVYKDYTA],"Taip") -> 2 | E10: =SUMIF(Kursai[REIKALAVIMAS],KREDITAI!$B10,Kursai[KREDITAI])-SUMIFS(Kursai[KREDITAI],Kursai[REIKALAVIMAS],KREDITAI!$B10,Kursai[ĮVYKDYTA],"Taip") -> 0
B11: Bendrasis mokomasis dalykas | C11: =IF(SUMIF(Kursai[REIKALAVIMAS],KREDITAI!$B11,Kursai[KREDITAI])=0,"0",SUMIF(Kursai[REIKALAVIMAS],KREDITAI!$B11,Kursai[KREDITAI])) -> 0 | D11: =SUMIFS(Kursai[KREDITAI],Kursai[REIKALAVIMAS],KREDITAI!$B11,Kursai[ĮVYKDYTA],"Taip") -> 0 | E11: =SUMIF(Kursai[REIKALAVIMAS],KREDITAI!$B11,Kursai[KREDITAI])-SUMIFS(Kursai[KREDITAI],Kursai[REIKALAVIMAS],KREDITAI!$B11,Kursai[ĮVYKDYTA],"Taip") -> 0
B12: Bendroji suma | C12: =SUBTOTAL(109,KREDITAI!$C$8:$C$11) -> 9 | D12: =SUBTOTAL(109,KREDITAI!$D$8:$D$11) -> 6 | E12: =SUBTOTAL(109,KREDITAI!$E$8:$E$11) -> 3
B13: Kursai
B14: KURSO PAVADINIMAS | C14: KURSO NR. | D14: REIKALAVIMAS | E14: KREDITAI | F14: ĮVYKDYTA | G14: ĮVERTINIMAS | H14: SEMESTRAS
B15: 1 kursas | C15: Numeris | D15: Akademinė specializacija | E15: 4 | F15: Taip | G15: 4.0 | H15: 1 semestras
B16: 2 kursas | C16: Numeris | D16: Akademinė neprofilinė disciplina | E16: 3 | F16: Ne | H16: 1 semestras
B17: 3 kursas | C17: Numeris | D17: Pasirenkamasis kursas | E17: 2 | F17: Taip | G17: 3.0 | H17: 1 semestras

Sheet BIUDŽETAS
B1: =Universitetas -> UNIVERSITETAS
B2: BIUDŽETO STEBĖJIMO PRIEMONĖ
B3: Mano biudžetas | C3: =Metai -> METAI
B4: PROCENTINĖ IŠLEISTŲ PAJAMŲ DALIS
B5: =GRYNOSIOS_MĖNESIO_IŠLAIDOS/GRYNOSIOS_MĖNESIO_PAJAMOS -> 1 €
B6: =B5 -> 0.7450909091
B7: GRYNOSIOS MĖNESIO PAJAMOS | C7: GRYNOSIOS MĖNESIO IŠLAIDOS | D7: LIKUTIS
B8: =C10 -> 1,375 € | C8: ='GRYNOSIOS MĖNESIO IŠLAIDOS'!C4+'SEMESTRO IŠLAIDOS'!D4 -> 1,025 € | D8: =GRYNOSIOS_MĖNESIO_PAJAMOS-GRYNOSIOS_MĖNESIO_IŠLAIDOS -> 351 €
B9: Semestro mėnesių skaičius | C9: 4
B10: MĖNESIO PAJAMOS | C10: =SUM(MėnesioPajamos[SUMA]) -> 1,375 €
B11: PREKĖ | C11: SUMA
B12: Nuolatinės pajamos | C12: 750 €
B13: Finansinė pagalba | C13: 250 €
B14: Paskolos | C14: 250 €
B15: Kitos pajamos | C15: 125 €

Sheet GRYNOSIOS MĖNESIO IŠLAIDOS
B1: =Universitetas -> UNIVERSITETAS
B2: BIUDŽETO STEBĖJIMO PRIEMONĖ
B3: Mėnesio išlaidos | C3: =Metai -> METAI
B4: MĖNESIO IŠLAIDOS | C4: =SUM(MėnesioIšlaidos[SUMA]) -> 837 €
B5: PREKĖ | C5: SUMA
B6: Nuoma | C6: 150 €
B7: Komunalinės paslaugos | C7: 25 €
B8: Mobilusis telefonas | C8: 37 €
B9: Maistas | C9: 125 €
B10: Išlaidos automobiliui | C10: 25 €
B11: Studijų paskolos | C11: 250 €
B12: Kredito kortelės | C12: 138 €
B13: Draudimas | C13: 62 €
B14: Pramogos | C14: 25 €
B15: Papildomos išlaidos | C15: 0 €

Sheet SEMESTRO IŠLAIDOS
B1: =Universitetas -> UNIVERSITETAS
B2: BIUDŽETO STEBĖJIMO PRIEMONĖ
B3: Semestro išlaidos | C3: =Metai -> METAI
B4: SEMESTRO IŠLAIDOS (bendroji suma / per mėnesį) | C4: =SUM(SemestroIšlaidos[SUMA]) -> 750 € | D4: =SUM(SemestroIšlaidos[PER MĖNESĮ]) -> 188 €
B5: PREKĖ | C5: SUMA | D5: PER MĖNESĮ
B6: Mokestis už mokslą | C6: 375 € | D6: =SemestroIšlaidos[[#This Row],[SUMA]]/Mėnesių_semestre -> 94 €
B7: Mokestis už laboratoriją | C7: 125 € | D7: =SemestroIšlaidos[[#This Row],[SUMA]]/Mėnesių_semestre -> 31 €
B8: Knygos | C8: 250 € | D8: =SemestroIšlaidos[[#This Row],[SUMA]]/Mėnesių_semestre -> 63 €
B9: Indėliai | C9: 0 € | D9: =SemestroIšlaidos[[#This Row],[SUMA]]/Mėnesių_semestre -> 0 €
B10: Transportas | C10: 0 € | D10: =SemestroIšlaidos[[#This Row],[SUMA]]/Mėnesių_semestre -> 0 €
B11: Kiti mokesčiai | C11: 0 € | D11: =SemestroIšlaidos[[#This Row],[SUMA]]/Mėnesių_semestre -> 0 €

Sheet KNYGOS
B1: =Universitetas -> UNIVERSITETAS
B2: KNYGŲ STEBĖJIMO PRIEMONĖ
B3: Knygų sąrašas
B4: ANTRAŠTĖ | C4: AUTORIUS | D4: KURSAS | E4: KUR ĮSIGYTI? | F4: ISBN | G4: PASTABOS
B5: Knygos pavadinimas | C5: Autorius | D5: Kursas | E5: Vieta | F5: Numeris
B6: Knygos pavadinimas | C6: Autorius | D6: Kursas | E6: Vieta | F6: Numeris
B7: Knygos pavadinimas | C7: Autorius | D7: Kursas | E7: Vieta | F7: Numeris
